{"text_format":"1","workbook":"xlsx","n_sheets":2,"sheets":["Indici","Calcolo azoto prodotto"],"not_rendered":{"charts":0,"images":1,"macros":1,"external_links":0,"defined_names":0,"comments":0,"pivot_tables":0},"unopened":[],"bounds":{"document_bytes":16777216,"sheet_cells":100000,"rows_first":2000,"rows_last":500,"rows_between":2000,"halvings":0,"cell_chars":16384,"cell_head_chars":4096},"cells_cut":0,"cells_raw":0,"read":"whole","date_system":"1900"}

{"sheet":"Indici","index":0,"n_rows":90,"n_cols":11,"rows_kept":90,"cut":false,"hidden":false,"merged":[[34,4,34,7],[46,6,47,6],[49,6,50,6],[49,7,50,7],[35,4,35,5],[36,4,37,4],[36,6,37,6],[36,7,37,7],[46,7,47,7],[2,4,2,7],[3,4,3,5],[4,3,5,3],[4,4,5,4],[4,6,5,6],[4,7,5,7],[4,5,5,5],[36,3,37,3],[63,4,63,7],[64,4,64,5],[51,3,52,3],[51,4,52,4],[51,5,52,5],[46,3,47,3],[46,4,47,4],[46,5,47,5],[49,3,50,3],[49,4,50,4],[49,5,50,5],[65,3,66,3],[65,4,66,4],[65,6,66,6],[65,7,66,7],[51,6,52,6],[51,7,52,7]]}
[]
[]
[null,null,null,"Categoria animale e tipologia di stabulazione","Azoto al campo (al netto delle perdite)"]
[null,null,null,null,"Totale",null,"nel liquame","nel letame (a)"]
[null,null,null,null,"kg/capo/anno","kg/t p.v./anno","kg/t p.v./anno","kg/t p.v./anno"]
[]
[null,null,null,"Suini: scrofe con suinetti fino a 30 kg p.v. (b) ",26.4,101]
[null,null,null,"·          stabulazione senza lettiera",null,null,101]
[null,null,null,"·          stabulazione su lettiera",null,null,null,101]
[null,null,null,"Suini: accrescimento/ingrasso(b)",9.8000000000000007,110]
[null,null,null,"·          stabulazione senza lettiera",null,null,110]
[null,null,null,"·          stabulazione su lettiera",null,null,null,110]
[null,null,null,"Vacche in produzione (latte) (peso vivo: 600 kg/capo) (c)",83,138]
[null,null,null,"·          fissa o libera senza lettiera",null,null,138]
[null,null,null,"·          libera su lettiera permanente",null,null,62,76]
[null,null,null,"·          fissa con lettiera, libera su lettiera inclinata",null,null,39,99]
[null,null,null,"·          libera a cuccette con paglia (groppa a groppa)",null,null,85,53]
[null,null,null,"·          libera a cuccette con paglia (testa a testa)",null,null,53,85]
[null,null,null,"Rimonta vacche da latte  (peso vivo: 300 kg/capo) (d)",36,120]
[null,null,null,"·          libera in box su pavimento fessurato",null,null,120]
[null,null,null,"·          libera a cuccette senza paglia o con uso modesto di paglia",null,null,120]
[null,null,null,"·          fissa con lettiera",null,null,26,94]
[null,null,null,"·          libera con lettiera permanente solo in zona riposo (asportazione a fine ciclo)",null,null,61,59]
[null,null,null,"·          libera con lettiera permanente anche in zona di alimentazione; libera con lettiera inclinata",null,null,17,103]
[null,null,null,"·          vitelli su pavimento fessurato",null,null,120]
[null,null,null,"·          vitelli su lettiera",null,null,20,100]
[null,null,null,"Bovini all’ingrasso (peso vivo: 400 kg/capo) (e)",33.6,84]
[null,null,null,"·          libera in box su pavimento fessurato",null,null,84]
[null,null,null,"·          libera a cuccette senza paglia o con uso modesto di paglia",null,null,84]
[null,null,null,"·          fissa con lettiera",null,null,18,66]
[null,null,null,"·          libera con lettiera permanente solo in zona riposo (asportazione a fine ciclo)",null,null,43,41]
[null,null,null,"·          libera con lettiera permanente anche in zona di alimentazione; libera con lettiera inclinata",null,null,12,72]
[null,null,null,"·          vitelli a carne bianca su pavimento fessurato (peso vivo: 130 kg/capo) (f)",8.6,67,67]
[null,null,null,"·          vitelli a carne bianca su lettiera (peso vivo: 130 kg/capo) (f)",8.6,67,12,55]
[null,null,null,"Categoria animale e tipologia di stabulazione","Azoto al campo (al netto delle perdite)"]
[null,null,null,null,"Totale",null,"nel liquame","nel letame "]
[null,null,null,null,"kg/capo/anno","kg/t","kg/t p.v./anno","kg/t p.v./anno"]
[null,null,null,null,null,"p.v./anno"]
[null,null,null,"Bufale  in produzione (latte) (peso vivo: 650 kg/capo) (a)",53,81.5]
[null,null,null,"·          fissa o libera senza lettiera",null,null,81.5]
[null,null,null,"·          libera su lettiera permanente",null,null,23.5,58]
[null,null,null,"·          fissa con lettiera, libera su lettiera inclinata",null,null,23.5,58]
[null,null,null,"·          libera a cuccette con paglia (groppa a groppa)",null,null,50,31.5]
[null,null,null,"·          libera a cuccette con paglia (testa a testa)",null,null,50,31.5]
[null,null,null,"Rimonta bufale da latte  (peso vivo: 300 kg/capo) ",31,103]
[null,null,null,"·          libera in box su pavimento fessurato",null,null,103]
[null,null,null,"·          libera a cuccette senza paglia o con uso modesto di paglia",null,null,103]
[null,null,null,null,null,null,103]
[null,null,null,"·          fissa con lettiera",null,null,22.3,80.7]
[null,null,null,"·          libera con lettiera permanente solo in zona riposo (asportazione a fine ciclo)",null,null,52.3,50.7]
[null,null,null,null,null,null,null,null,null,null,"\\"]
[null,null,null,"·          libera con lettiera permanente anche in zona di alimentazione; libera con lettiera inclinata",null,null,14.6,88.4]
[]
[null,null,null,"·          vitelli su pavimento fessurato",null,null,104]
[null,null,null,"·          vitelli su lettiera",null,null,18,86]
[null,null,null,"Bufali all’ingrasso (peso vivo: 400 kg/capo) ",30,75]
[null,null,null,"·          libera in box su pavimento fessurato",null,null,75]
[null,null,null,"·          libera a cuccette senza paglia o con uso modesto di paglia",null,null,75]
[null,null,null,"·          fissa con lettiera",null,null,11,64]
[null,null,null,"·          libera con lettiera permanente solo in zona riposo (asportazione a fine ciclo)",null,null,38.5,36.5]
[null,null,null,"·          libera con lettiera permanente anche in zona di alimentazione; libera con lettiera inclinata",null,null,10.8,64.2]
[null,null,null,"Vitelli bufalini a carne bianca su pavimento fessurato (peso vivo: 130 kg/capo) ",8.6,67,67]
[null,null,null,"Vitelli  bufalini a carne bianca su lettiera (peso vivo: 130 kg/capo) ",8.6,67,12,55]
[null,null,null,"Categoria animale e tipologia di stabulazione","Azoto al campo (al netto delle perdite)"]
[null,null,null,null,"TOTALE",null,"nel liquame","nel letame (a)"]
[null,null,null,null,"kg/capo/anno","kg/t","kg/t p.v./anno","kg/t p.v./anno"]
[null,null,null,null,null,"p.v./anno"]
[null,null,null,"Ovaiole (peso vivo: 2 kg/capo) (g)",0.46,230]
[null,null,null,"·          ovaiole in gabbia senza tecnica di essiccazione della pollina",null,null,230]
[null,null,null,"·          ovaiole in gabbia con essiccazione della pollina su nastri ventilati o in tunnel ventilato o in locale posto sotto il piano di gabbie  (fossa profonda) ",null,null,null,230]
[null,null,null,"·          ovaiole e riproduttori a terra con lettiera e con aerazione della pollina nella fossa sotto al fessurato (posatoio)",null,null,null,230]
[null,null,null,"Pollastre (peso vivo:  0.8 kg/capo) (g)",0.23,288]
[null,null,null,"·          pollastre in gabbia senza tecnica di essiccazione della pollina",null,null,288]
[null,null,null,"·          pollastre in gabbia con essiccazione della pollina su nastri ventilati o in locale posto sotto il piano di gabbie (fossa profonda)",null,null,null,288]
[null,null,null,"·          pollastre a terra su lettiera",null,null,null,288]
[null,null,null,"Broilers (peso vivo: 1 kg/capo)  (h)",0.19,190]
[null,null,null,"·          a terra con uso di lettiera",null,null,null,190]
[null,null,null,"Tacchini (h)"]
[null,null,null,"Maschi a terra con uso di lettiera (peso vivo medio: 9 kg/capo)",1.06,118,null,118]
[null,null,null,"Femmine a terra con uso di lettiera (peso vivo medio: 4,5 kg/capo)",0.53,118,null,118]
[null,null,null,"Faraone (peso vivo: 0,8 kg/capo) ",0.19,240]
[null,null,null,"·          a terra con uso di lettiera",null,null,null,240]
[null,null,null,"Cunicoli"]
[null,null,null,"·          fattrici in gabbia con asportazione manuale o con asportazione meccanica (raschiatore) (p.v. medio = 3,5 kg/capo)",null,143,null,143]
[null,null,null,"·          capi all'ingrasso in gabbia con asportazione manuale o con asportazione meccanica (raschiatore) (p.v. medio = 1,7 kg/capo)",null,143,null,143]
[null,null,null,"Ovicaprini",null,99]
[null,null,null,"·          con stabulazione in recinti individuali o collettivi",null,null,44,55]
[null,null,null,"·          su pavimento grigliato o fessurato",null,null,99]
[null,null,null,"Equini",null,69]
[null,null,null,"-          con stabulazione in recinti individuali o collettivi",null,null,21,48]

{"sheet":"Calcolo azoto prodotto","index":1,"n_rows":34,"n_cols":41,"rows_kept":34,"cut":false,"hidden":false,"merged":[[33,5,34,6],[1,7,1,40],[2,5,2,6],[2,2,3,2],[33,4,34,4],[22,2,23,2],[24,3,28,3],[22,3,22,5],[23,3,23,5],[24,5,28,5]]}
[]
[null,null,null,null,null,null,null,"KG ANNO DI AZOTO AL CAMPO, RISPETTIVAMENTE NEL LIQUAME O NEL LETAME, IN CONSIDERAZIONE DEL TIPO DI STABULAZIONE E TON.PESO VIVO DEGLI ANIMALI"]
[null,null,"Categoria animale e tipologia di stabulazione","DIGITARE  numero  capi per categoria","oppure  DIGITARE il peso ton/p.v.   per categoria",null,null,"liquame","letame","liquame","letame","liquame","letame","liquame","letame","liquame","letame","liquame","liquame","liquame","liquame","letame","liquame","letame","liquame","letame","liquame","liquame","letame","liquame","letame","letame","liquame","letame","letame","letame","letame","letame","liquame","letame","liquame"]
[null,null,null,null,null,"Azoto al campo                          (al netto delle perdite)                Totale Kg/anno","Azoto al campo                          (al netto delle perdite)                Totale Kg/anno","stabulazione senza lettiera","stabulazione su lettiera"," fissa o libera senza lettiera"," libera su lettiera permanente"," libera su lettiera permanente","fissa con lettiera, libera su lettiera inclinata"," fissa con lettiera, libera su lettiera inclinata"," libera a cuccette con paglia (groppa a groppa)"," libera a cuccette con paglia (groppa a groppa)"," libera a cuccette con paglia (testa a testa)","  libera a cuccette con paglia (testa a testa)"," libera in box su pavimento fessurato"," libera a cuccette senza paglia o con uso modesto di paglia"," fissa con lettiera","fissa con lettiera"," libera con lettiera permanente solo in zona riposo (asportazione a fine ciclo)"," libera con lettiera permanente solo in zona riposo (asportazione a fine ciclo)","libera con lettiera permanente anche in zona di alimentazione; libera con lettiera inclinata","libera con lettiera permanente anche in zona di alimentazione; libera con lettiera inclinata"," su pavimento fessurato","su lettiera","su lettiera","ovaiole in gabbia senza tecnica di essiccazione della pollina","ovaiole in gabbia con essiccazione della pollina su nastri ventilati o in tunnel ventilato o in locale posto sotto il piano di gabbie  (fossa profonda) "," ovaiole e riproduttori a terra con lettiera e con aerazione della pollina nella fossa sotto al fessurato (posatoio)","pollastre in gabbia senza tecnica di essiccazione della pollina","pollastre in gabbia con essiccazione della pollina su nastri ventilati o in locale posto sotto il piano di gabbie (fossa profonda)","pollastre a terra su lettiera"," a terra con uso di lettiera","fattrici in gabbia con asportazione manuale o con asportazione meccanica (raschiatore) (p.v. medio = 3,5 kg/capo)","capi all'ingrasso in gabbia con asportazione manuale o con asportazione meccanica (raschiatore) (p.v. medio = 1,7 kg/capo)","con stabulazione in recinti individuali o collettivi"," con stabulazione in recinti individuali o collettivi"," su pavimento grigliato o fessurato"]
[null,null,"Suini: scrofe con suinetti fino a 30 kg p.v. (b) ",null,null,{"$f":"D5*Indici!E7","v":0},{"$f":"E5*Indici!F7","v":0},{"$f":"E5*Indici!G8","v":0},{"$f":"E5*Indici!H9","v":0}]
[null,null,"Suini: accrescimento/ingrasso(b)",null,null,{"$f":"D6*Indici!E10","v":0},{"$f":"E6*Indici!F10","v":0},{"$f":"E6*Indici!G11","v":0},{"$f":"E6*Indici!H12","v":0}]
[null,null,"Vacche in produzione (latte) (peso vivo: 600 kg/capo) (c)",null,null,{"$f":"D7*Indici!E13","v":0},{"$f":"E7*Indici!F13","v":0},null,null,{"$f":"E7*Indici!G14","v":0},{"$f":"E7*Indici!H15","v":0},{"$f":"E7*Indici!G15","v":0},{"$f":"E7*Indici!H16","v":0},{"$f":"E7*Indici!G16","v":0},{"$f":"E7*Indici!H17","v":0},{"$f":"E7*Indici!G17","v":0},{"$f":"E7*Indici!H18","v":0},{"$f":"E7*Indici!G18","v":0}]
[null,null,"Rimonta vacche da latte  (peso vivo: 300 kg/capo) (d)",null,null,{"$f":"D8*Indici!E19","v":0},{"$f":"E8*Indici!F19","v":0},null,null,null,null,null,null,null,null,null,null,null,{"$f":"E8*Indici!G20","v":0},{"$f":"E8*Indici!G21","v":0},{"$f":"E8*Indici!G22","v":0},{"$f":"E8*Indici!H22","v":0},{"$f":"E8*Indici!G23","v":0},{"$f":"E8*Indici!H23","v":0},{"$f":"E8*Indici!G24","v":0},{"$f":"E8*Indici!H24","v":0}]
[null,null,"Bovini all’ingrasso (peso vivo: 400 kg/capo) (e)",null,null,{"$f":"D9*Indici!E27","v":0},{"$f":"E9*Indici!F27","v":0},null,null,null,null,null,null,null,null,null,null,null,{"$f":"E9*Indici!G28","v":0},{"$f":"E9*Indici!G29","v":0},{"$f":"E9*Indici!G30","v":0},{"$f":"E9*Indici!H30","v":0},{"$f":"E9*Indici!G31","v":0},{"$f":"E9*Indici!H31","v":0},{"$f":"E9*Indici!G32","v":0},{"$f":"E9*Indici!H32","v":0}]
[null,null,"Vitelli a  carne bianca su pavimento fessurato (peso vivo: 130 kg/capo) (f)",null,null,{"$f":"D10*Indici!E33","v":0},{"$f":"E10*Indici!F33","v":0},null,null,null,null,null,null,null,null,null,null,null,null,null,null,null,null,null,null,null,{"$f":"E10*Indici!G33","v":0}]
[null,null,"Vitelli a carne bianca su lettiera (peso vivo: 130 kg/capo) (f)",null,null,{"$f":"D11*Indici!E34","v":0},{"$f":"E11*Indici!F34","v":0},null,null,null,null,null,null,null,null,null,null,null,null,null,null,null,null,null,null,null,null,{"$f":"E11*Indici!G34","v":0},{"$f":"E11*Indici!H34","v":0}]
[null,null,"Bufale  in produzione (latte) (peso vivo: 650 kg/capo) (a)",null,null,{"$f":"D12*Indici!E39","v":0},{"$f":"E12*Indici!F39","v":0},null,null,{"$f":"E12*Indici!G40","v":0},{"$f":"E12*Indici!G41","v":0},{"$f":"E12*Indici!H41","v":0},{"$f":"E12*Indici!G42","v":0},{"$f":"E12*Indici!H42","v":0},{"$f":"E12*Indici!G43","v":0},{"$f":"E12*Indici!H43","v":0},{"$f":"E12*Indici!G44","v":0},{"$f":"E12*Indici!H44","v":0}]
[null,null,"Rimonta bufale da latte  (peso vivo: 300 kg/capo) ",null,null,{"$f":"D13*Indici!E45","v":0},{"$f":"E13*Indici!F45","v":0},null,null,null,null,null,null,null,null,null,null,null,{"$f":"E13*Indici!G46","v":0},{"$f":"E13*Indici!G47","v":0},{"$f":"E13*Indici!G49","v":0},{"$f":"E13*Indici!H49","v":0},{"$f":"E13*Indici!G50","v":0},{"$f":"E13*Indici!H50","v":0},{"$f":"E12*Indici!G52","v":0},{"$f":"E12*Indici!H52","v":0}]
[null,null,"Bufali all’ingrasso (peso vivo: 400 kg/capo) ",null,null,{"$f":"D14*Indici!E56","v":0},{"$f":"E14*Indici!F56","v":0},null,null,null,null,null,null,null,null,null,null,null,{"$f":"E14*Indici!G57","v":0},{"$f":"E14*Indici!G58","v":0},{"$f":"E14*Indici!G59","v":0},{"$f":"E14*Indici!H59","v":0},{"$f":"E14*Indici!G60","v":0},{"$f":"E14*Indici!H60","v":0},{"$f":"E14*Indici!G61","v":0},{"$f":"E14*Indici!H61","v":0}]
[null,null,"Vitelli bufalini a carne bianca su pavimento fessurato (peso vivo: 130 kg/capo) ",null,null,{"$f":"D15*Indici!E62","v":0},{"$f":"E15*Indici!F62","v":0},null,null,null,null,null,null,null,null,null,null,null,null,null,null,null,null,null,null,null,{"$f":"E15*Indici!G62","v":0}]
[null,null,"Vitelli bufalini a carne bianca su lettiera (peso vivo: 130 kg/capo) ",null,null,{"$f":"D16*Indici!E63","v":0},{"$f":"E16*Indici!F63","v":0},null,null,null,null,null,null,null,null,null,null,null,null,null,null,null,null,null,null,null,null,{"$f":"E16*Indici!G63","v":0},{"$f":"E16*Indici!H63","v":0}]
[null,null,"Ovaiole (peso vivo: 2 kg/capo) (g)",null,null,{"$f":"D17*Indici!E68","v":0},{"$f":"E17*Indici!F68","v":0},null,null,null,null,null,null,null,null,null,null,null,null,null,null,null,null,null,null,null,null,null,null,{"$f":"E17*Indici!G69","v":0},{"$f":"E17*Indici!H70","v":0},{"$f":"E17*Indici!H71","v":0}]
[null,null,"Pollastre (peso vivo:  0.8 kg/capo) (g)",null,null,{"$f":"D18*Indici!E72","v":0},{"$f":"E18*Indici!F72","v":0},null,null,null,null,null,null,null,null,null,null,null,null,null,null,null,null,null,null,null,null,null,null,null,null,null,{"$f":"E18*Indici!G73","v":0},{"$f":"E18*Indici!H74","v":0},{"$f":"E18*Indici!H75","v":0}]
[null,null,"Broilers (peso vivo: 1 kg/capo)  (h)",null,null,{"$f":"D19*Indici!E76","v":0},{"$f":"E19*Indici!F76","v":0},null,null,null,null,null,null,null,null,null,null,null,null,null,null,null,null,null,null,null,null,null,null,null,null,null,null,null,null,{"$f":"E19*Indici!H77","v":0}]
[null,null,"Tacchini Maschi a terra con uso di lettiera (peso vivo medio: 9 kg/capo)",null,null,{"$f":"D20*Indici!E79","v":0},{"$f":"E20*Indici!F79","v":0},null,null,null,null,null,null,null,null,null,null,null,null,null,null,null,null,null,null,null,null,null,null,null,null,null,null,null,null,{"$f":"E20*Indici!H79","v":0}]
[null,null,"Tacchini Femmine a terra con uso di lettiera (peso vivo medio: 4,5 kg/capo)",null,null,{"$f":"D21*Indici!E80","v":0},{"$f":"E21*Indici!F80","v":0},null,null,null,null,null,null,null,null,null,null,null,null,null,null,null,null,null,null,null,null,null,null,null,null,null,null,null,null,{"$f":"E21*Indici!H80","v":0}]
[null,null,"Faraone (peso vivo: 0,8 kg/capo) ",null,null,{"$f":"D22*Indici!E81","v":0},{"$f":"E22*Indici!F81","v":0},null,null,null,null,null,null,null,null,null,null,null,null,null,null,null,null,null,null,null,null,null,null,null,null,null,null,null,null,{"$f":"E22*Indici!H82","v":0}]
[null,null,null,"per le sottoelencate specie è POSSIBILE inserire solo"]
[null,null,null,"tonn.p.v./anno"]
[null,null,"Cunicoli   fattrici in gabbia con asportazione manuale o con asportazione meccanica (raschiatore) (p.v. medio = 3,5 kg/capo)",null,null,null,{"$f":"E25*Indici!F84","v":0},null,null,null,null,null,null,null,null,null,null,null,null,null,null,null,null,null,null,null,null,null,null,null,null,null,null,null,null,null,{"$f":"E25*Indici!H84","v":0}]
[null,null,"Cunicoli       capi all'ingrasso in gabbia con asportazione manuale o con asportazione meccanica (raschiatore) (p.v. medio = 1,7 kg/capo)",null,null,null,{"$f":"E26*Indici!F85","v":0},null,null,null,null,null,null,null,null,null,null,null,null,null,null,null,null,null,null,null,null,null,null,null,null,null,null,null,null,null,null,{"$f":"E26*Indici!H85","v":0}]
[null,null,"Ovicaprini  con stabulazione in recinti individuali o collettivi",null,null,null,{"$f":"E27*Indici!F86","v":0},null,null,null,null,null,null,null,null,null,null,null,null,null,null,null,null,null,null,null,null,null,null,null,null,null,null,null,null,null,null,null,{"$f":"E27*Indici!G87","v":0},{"$f":"E27*Indici!H87","v":0}]
[null,null,"Ovicaprini  su pavimento grigliato o fessurato",null,null,null,{"$f":"E28*Indici!F86","v":0},null,null,null,null,null,null,null,null,null,null,null,null,null,null,null,null,null,null,null,null,null,null,null,null,null,null,null,null,null,null,null,{"$f":"E28*Indici!G88","v":0}]
[null,null,"Equini",null,null,null,{"$f":"E29*Indici!F89","v":0},null,null,null,null,null,null,null,null,null,null,null,null,null,null,null,null,null,null,null,null,null,null,null,null,null,null,null,null,null,null,null,{"$f":"E29*Indici!G90","v":0},{"$f":"E29*Indici!H90","v":0}]
[]
[null,null,null,null,null,{"$f":"SUM(F5:F22)","v":0},{"$f":"SUM(G5:G22,G25:G29)","v":0}]
[null,null,null,null,null,"risultato da procedura A","risultato da procedura B"]
[]
[null,null,null,null,"Totale                                     Azoto al campo Anno /Azienda",{"$f":"F31+G31","v":0}]